[Event "*** Titled Tuesday Blitz"]
[Site "Chess.com"]
[Date "2020.10.20"]
[Round "7"]
[White "nitpicker"]
[Black "Ariadna_Atreides"]
[Result "1-0"]
[WhiteElo "2293"]
[BlackElo "2060"]
[TimeControl "180+1"]
[EndTime "11:18:15 PDT"]
[Termination "nitpicker won by resignation"]

1. d4 {[%clk 0:03:00.9]} 1... Nf6 {[%clk 0:02:47.1]} 2. c4 {[%clk 0:03:00.7]}
2... e6 {[%clk 0:02:46.8]} 3. g3 {[%clk 0:02:59.4]} 3... d5 {[%clk 0:02:42.8]}
4. Nf3 {[%clk 0:02:58.8]} 4... Be7 {[%clk 0:02:40.7]} 5. Bg2 {[%clk 0:02:58.7]}
5... O-O {[%clk 0:02:40.5]} 6. O-O {[%clk 0:02:58.6]} 6... c6 {[%clk 0:02:40.2]}
7. Qc2 {[%clk 0:02:57.9]} 7... b6 {[%clk 0:02:37.7]} 8. Rd1 {[%clk 0:02:54.6]}
8... Bb7 {[%clk 0:02:33.7]} 9. Nc3 {[%clk 0:02:45.7]} 9... dxc4 {[%clk
0:02:19.3]} 10. Ne5 {[%clk 0:02:44.5]} 10... b5 {[%clk 0:02:18.1]} 11. Nxb5
{[%clk 0:02:42.6]} 11... Nd5 {[%clk 0:02:08.6]} 12. Nc3 {[%clk 0:02:34.3]} 12...
Nb6 {[%clk 0:02:00.4]} 13. Na4 {[%clk 0:02:27.1]} 13... Qc7 {[%clk 0:01:43.5]}
14. Nxc4 {[%clk 0:02:15.6]} 14... Nxa4 {[%clk 0:01:37.5]} 15. Qxa4 {[%clk
0:02:15.2]} 15... c5 {[%clk 0:01:36.7]} 16. Bf4 {[%clk 0:02:08.3]} 16... Qc8
{[%clk 0:01:34.6]} 17. Bd6 {[%clk 0:01:59.2]} 17... Bxg2 {[%clk 0:01:25.9]} 18.
Bxe7 {[%clk 0:01:46.5]} 18... Bc6 {[%clk 0:01:24.8]} 19. Qa3 {[%clk 0:01:44.8]}
19... cxd4 {[%clk 0:01:12.9]} 20. Bxf8 {[%clk 0:01:42.3]} 20... Qxf8 {[%clk
0:01:13.3]} 21. Qxf8+ {[%clk 0:01:41.8]} 21... Kxf8 {[%clk 0:01:13.5]} 22. Rxd4
{[%clk 0:01:38]} 22... Na6 {[%clk 0:01:11.9]} 23. a3 {[%clk 0:01:33.2]} 23...
Ke7 {[%clk 0:01:09.7]} 24. Rc1 {[%clk 0:01:17.8]} 24... e5 {[%clk 0:01:03.8]}
25. Nxe5 {[%clk 0:01:16.5]} 25... Bb5 {[%clk 0:01:00.6]} 26. Nc6+ {[%clk
0:01:09.1]} 26... Ke6 {[%clk 0:00:51.8]} 27. a4 {[%clk 0:01:06.4]} 27... Bxc6
{[%clk 0:00:43]} 28. Rxc6+ {[%clk 0:01:05.6]} 28... Ke5 {[%clk 0:00:43.9]} 29.
e3 {[%clk 0:01:03.5]} 29... Nb8 {[%clk 0:00:34.7]} 30. Rc8 {[%clk 0:01:03.4]}
1-0

[Event "*** Titled Tuesday Blitz"]
[Site "Chess.com"]
[Date "2020.10.20"]
[Round "7"]
[White "Me_ch_an"]
[Black "jacky72"]
[Result "1-0"]
[WhiteElo "2382"]
[BlackElo "2553"]
[TimeControl "180+1"]
[EndTime "11:18:19 PDT"]
[Termination "Me_ch_an won by checkmate"]

1. e4 {[%clk 0:03:00.9]} 1... a6 {[%clk 0:03:00.9]} 2. c4 {[%clk 0:02:53]} 2...
g6 {[%clk 0:03:01.8]} 3. Nc3 {[%clk 0:02:51.8]} 3... Bg7 {[%clk 0:03:02.7]} 4.
g3 {[%clk 0:02:51.8]} 4... c5 {[%clk 0:03:03.6]} 5. d3 {[%clk 0:02:51.1]} 5...
Nc6 {[%clk 0:03:04.5]} 6. Be3 {[%clk 0:02:51.2]} 6... Nd4 {[%clk 0:03:04.2]} 7.
Qd2 {[%clk 0:02:51]} 7... b5 {[%clk 0:03:03.6]} 8. Bg2 {[%clk 0:02:36.6]} 8...
b4 {[%clk 0:03:03.1]} 9. Nce2 {[%clk 0:02:24.9]} 9... Nxe2 {[%clk 0:02:53.4]}
10. Nxe2 {[%clk 0:02:23.6]} 10... d6 {[%clk 0:02:54.3]} 11. d4 {[%clk
0:02:20.4]} 11... cxd4 {[%clk 0:02:52.8]} 12. Nxd4 {[%clk 0:02:11.8]} 12... Nf6
{[%clk 0:02:45.6]} 13. e5 {[%clk 0:01:58.6]} 13... dxe5 {[%clk 0:02:46.5]} 14.
Bxa8 {[%clk 0:01:53.8]} 14... exd4 {[%clk 0:02:47.4]} 15. Qxd4 {[%clk
0:01:45.2]} 15... Qc7 {[%clk 0:02:44.4]} 16. Qb6 {[%clk 0:01:37.7]} 16... Qxb6
{[%clk 0:02:44.3]} 17. Bxb6 {[%clk 0:01:38.3]} 17... Nd7 {[%clk 0:02:45.2]} 18.
Be3 {[%clk 0:01:23.6]} 18... Bxb2 {[%clk 0:02:45.4]} 19. Rb1 {[%clk 0:01:22.3]}
19... Bf6 {[%clk 0:02:46]} 20. O-O {[%clk 0:01:18.6]} 20... a5 {[%clk
0:02:46.4]} 21. c5 {[%clk 0:01:14.8]} 21... O-O {[%clk 0:02:43.8]} 22. Rfd1
{[%clk 0:00:57.4]} 22... Ne5 {[%clk 0:02:40.5]} 23. Bh6 {[%clk 0:00:41.6]} 23...
Re8 {[%clk 0:02:37.1]} 24. f4 {[%clk 0:00:36.7]} 24... Bf5 {[%clk 0:02:13.2]}
25. fxe5 {[%clk 0:00:33.8]} 25... Bxb1 {[%clk 0:02:12.4]} 26. exf6 {[%clk
0:00:33.3]} 26... exf6 {[%clk 0:02:03.6]} 27. Rxb1 {[%clk 0:00:29.2]} 27... Rxa8
{[%clk 0:02:03.7]} 28. c6 {[%clk 0:00:29.4]} 28... f5 {[%clk 0:02:02.9]} 29. Bf4
{[%clk 0:00:26.1]} 29... f6 {[%clk 0:02:02.6]} 30. c7 {[%clk 0:00:25.2]} 30...
Kf7 {[%clk 0:02:03.2]} 31. Rd1 {[%clk 0:00:24.3]} 31... g5 {[%clk 0:02:03.2]}
32. Rd8 {[%clk 0:00:23.4]} 32... Rxd8 {[%clk 0:02:02]} 33. cxd8=Q {[%clk
0:00:23.4]} 33... gxf4 {[%clk 0:02:02]} 34. gxf4 {[%clk 0:00:23.6]} 34... a4
{[%clk 0:02:02.1]} 35. Qa5 {[%clk 0:00:23.3]} 35... b3 {[%clk 0:02:02.2]} 36.
axb3 {[%clk 0:00:24.2]} 36... a3 {[%clk 0:02:02.6]} 37. Qxa3 {[%clk 0:00:23.9]}
37... Kg6 {[%clk 0:02:02.6]} 38. Qd6 {[%clk 0:00:23.3]} 38... h6 {[%clk
0:02:02.5]} 39. b4 {[%clk 0:00:22.7]} 39... Kh5 {[%clk 0:02:02.8]} 40. Qxf6
{[%clk 0:00:21.3]} 40... Kg4 {[%clk 0:02:02.4]} 41. Qxh6 {[%clk 0:00:20.8]}
41... Kf3 {[%clk 0:02:02.8]} 42. Qg5 {[%clk 0:00:20.7]} 42... Ke2 {[%clk
0:02:02.7]} 43. b5 {[%clk 0:00:20.9]} 43... Kf3 {[%clk 0:02:02.8]} 44. b6 {[%clk
0:00:21.2]} 44... Ke3 {[%clk 0:02:02.3]} 45. b7 {[%clk 0:00:21]} 45... Ke2
{[%clk 0:02:03.2]} 46. b8=Q {[%clk 0:00:20.3]} 46... Kf3 {[%clk 0:02:04.1]} 47.
Qb3+ {[%clk 0:00:20.2]} 47... Ke2 {[%clk 0:02:04.2]} 48. Qg2+ {[%clk 0:00:19.6]}
48... Ke1 {[%clk 0:02:04.5]} 49. Qf2# {[%clk 0:00:18.5]} 1-0

[Event "*** Titled Tuesday Blitz"]
[Site "Chess.com"]
[Date "2020.10.20"]
[Round "7"]
[White "PavelShkapenko"]
[Black "FMJoseHerrera"]
[Result "1-0"]
[WhiteElo "2708"]
[BlackElo "2539"]
[TimeControl "180+1"]
[EndTime "11:18:24 PDT"]
[Termination "PavelShkapenko won by resignation"]

1. e4 {[%clk 0:03:00.9]} 1... c5 {[%clk 0:02:59.3]} 2. c3 {[%clk 0:03:00.8]}
2... Qa5 {[%clk 0:02:58.1]} 3. Nf3 {[%clk 0:03:00.3]} 3... e6 {[%clk 0:02:57.7]}
4. a3 {[%clk 0:02:40.4]} 4... a6 {[%clk 0:02:57.2]} 5. d4 {[%clk 0:02:37.1]}
5... cxd4 {[%clk 0:02:54.4]} 6. b4 {[%clk 0:02:37.3]} 6... Qc7 {[%clk
0:02:53.5]} 7. cxd4 {[%clk 0:02:37.3]} 7... b5 {[%clk 0:02:53]} 8. Bd3 {[%clk
0:02:36.5]} 8... Bb7 {[%clk 0:02:52.4]} 9. O-O {[%clk 0:02:36.4]} 9... Nf6
{[%clk 0:02:52.8]} 10. Re1 {[%clk 0:02:36.1]} 10... d6 {[%clk 0:02:49.2]} 11.
Bg5 {[%clk 0:02:31.3]} 11... Nbd7 {[%clk 0:02:48.5]} 12. Nbd2 {[%clk 0:02:31.4]}
12... Be7 {[%clk 0:02:47.4]} 13. Rc1 {[%clk 0:02:30.2]} 13... Qb6 {[%clk
0:02:46.5]} 14. Nf1 {[%clk 0:02:25.3]} 14... O-O {[%clk 0:02:43.5]} 15. Qe2
{[%clk 0:01:24.2]} 15... Rac8 {[%clk 0:02:21.7]} 16. Ng3 {[%clk 0:01:20.8]}
16... h6 {[%clk 0:02:20.2]} 17. Be3 {[%clk 0:01:20.1]} 17... Ng4 {[%clk
0:02:19.8]} 18. Bd2 {[%clk 0:01:20]} 18... Rxc1 {[%clk 0:02:13.3]} 19. Bxc1
{[%clk 0:01:18.7]} 19... Rc8 {[%clk 0:01:44.9]} 20. h3 {[%clk 0:01:17.5]} 20...
Ngf6 {[%clk 0:01:45.3]} 21. e5 {[%clk 0:01:17.4]} 21... dxe5 {[%clk 0:01:40]}
22. dxe5 {[%clk 0:01:17]} 22... Ne8 {[%clk 0:01:39.6]} 23. Be3 {[%clk
0:01:04.9]} 23... Qc6 {[%clk 0:01:32.9]} 24. Rc1 {[%clk 0:00:52]} 24... Qd5
{[%clk 0:01:32.5]} 25. Be4 {[%clk 0:00:51.9]} 25... Rxc1+ {[%clk 0:01:25.4]} 26.
Bxc1 {[%clk 0:00:51.8]} 26... Nxe5 {[%clk 0:00:41.9]} 27. Bxd5 {[%clk
0:00:50.7]} 27... Nxf3+ {[%clk 0:00:42.3]} 28. Bxf3 {[%clk 0:00:49.5]} 1-0

[Event "*** Titled Tuesday Blitz"]
[Site "Chess.com"]
[Date "2020.10.20"]
[Round "7"]
[White "PLAYER_2006_M"]
[Black "vovachesss"]
[Result "0-1"]
[WhiteElo "2532"]
[BlackElo "2694"]
[TimeControl "180+1"]
[EndTime "11:18:26 PDT"]
[Termination "vovachesss won by resignation"]

1. d4 {[%clk 0:03:00.1]} 1... e5 {[%clk 0:02:47.3]} 2. dxe5 {[%clk 0:02:55.8]}
2... d6 {[%clk 0:02:46.5]} 3. Nf3 {[%clk 0:02:52.3]} 3... Nc6 {[%clk 0:02:45.8]}
4. Bg5 {[%clk 0:02:45.7]} 4... Qd7 {[%clk 0:02:45.3]} 5. exd6 {[%clk 0:02:43.8]}
5... Bxd6 {[%clk 0:02:41.5]} 6. Nc3 {[%clk 0:02:42.7]} 6... Nge7 {[%clk
0:02:40.4]} 7. Ne4 {[%clk 0:02:38.8]} 7... Bb4+ {[%clk 0:02:34.6]} 8. c3 {[%clk
0:02:37.8]} 8... Qe6 {[%clk 0:02:35.2]} 9. cxb4 {[%clk 0:01:55.6]} 9... Qxe4
{[%clk 0:02:33.7]} 10. a3 {[%clk 0:01:52.1]} 10... Bg4 {[%clk 0:02:25.8]} 11. h3
{[%clk 0:01:34.6]} 11... Bxf3 {[%clk 0:02:09]} 12. gxf3 {[%clk 0:01:29.2]} 12...
Qe5 {[%clk 0:02:09.9]} 13. Bxe7 {[%clk 0:01:07]} 13... Nxe7 {[%clk 0:02:08.5]}
14. Qc2 {[%clk 0:00:52.1]} 14... O-O-O {[%clk 0:02:07.9]} 15. e3 {[%clk
0:00:47.4]} 15... Nf5 {[%clk 0:02:03.1]} 16. f4 {[%clk 0:00:36.2]} 16... Nxe3
{[%clk 0:01:38.8]} 17. fxe3 {[%clk 0:00:28.5]} 17... Qxe3+ {[%clk 0:01:34.7]}
18. Qe2 {[%clk 0:00:26.8]} 18... Qg3+ {[%clk 0:01:14.9]} 19. Qf2 {[%clk
0:00:24]} 19... Rhe8+ {[%clk 0:01:08.7]} 20. Be2 {[%clk 0:00:22.7]} 20... Rxe2+
{[%clk 0:00:53]} 21. Kxe2 {[%clk 0:00:20.7]} 21... Qd3+ {[%clk 0:00:53.4]} 0-1

[Event "*** Titled Tuesday Blitz"]
[Site "Chess.com"]
[Date "2020.10.20"]
[Round "7"]
[White "DinaBelenkaya"]
[Black "Gerodot71"]
[Result "0-1"]
[WhiteElo "2285"]
[BlackElo "2459"]
[TimeControl "180+1"]
[EndTime "11:18:28 PDT"]
[Termination "Gerodot71 won by resignation"]

1. e4 {[%clk 0:03:00.9]} 1... e5 {[%clk 0:02:59.8]} 2. Nf3 {[%clk 0:02:58]} 2...
Nc6 {[%clk 0:03:00.3]} 3. d4 {[%clk 0:02:49.9]} 3... exd4 {[%clk 0:03:01.2]} 4.
Nxd4 {[%clk 0:02:50.5]} 4... Bc5 {[%clk 0:03:00.3]} 5. Nb3 {[%clk 0:02:48.2]}
5... Bb6 {[%clk 0:03:00]} 6. Nc3 {[%clk 0:02:49.1]} 6... Nge7 {[%clk 0:02:59.6]}
7. Be2 {[%clk 0:02:40]} 7... O-O {[%clk 0:02:56.8]} 8. O-O {[%clk 0:02:33.2]}
8... d6 {[%clk 0:02:55.7]} 9. a4 {[%clk 0:02:25.8]} 9... a5 {[%clk 0:02:54.2]}
10. Kh1 {[%clk 0:02:21.4]} 10... f5 {[%clk 0:02:52.2]} 11. Bg5 {[%clk 0:02:19]}
11... h6 {[%clk 0:02:41.3]} 12. Be3 {[%clk 0:02:10]} 12... Bxe3 {[%clk
0:02:28.9]} 13. fxe3 {[%clk 0:02:10.9]} 13... Ne5 {[%clk 0:02:27.4]} 14. Nd4
{[%clk 0:02:07.7]} 14... Bd7 {[%clk 0:02:22.9]} 15. exf5 {[%clk 0:01:59.1]}
15... Nxf5 {[%clk 0:02:23.8]} 16. Nxf5 {[%clk 0:01:58.6]} 16... Bxf5 {[%clk
0:02:21.1]} 17. Qd5+ {[%clk 0:01:53.5]} 17... Kh8 {[%clk 0:02:19.5]} 18. e4
{[%clk 0:01:45.1]} 18... Bc8 {[%clk 0:01:45.6]} 19. Rxf8+ {[%clk 0:01:40.6]}
19... Qxf8 {[%clk 0:01:46.5]} 20. Rf1 {[%clk 0:01:40.8]} 20... Qe7 {[%clk
0:01:45.4]} 21. Bc4 {[%clk 0:01:31.2]} 21... Nxc4 {[%clk 0:01:43.3]} 22. Qxc4
{[%clk 0:01:31.5]} 22... Be6 {[%clk 0:01:43.4]} 23. Nd5 {[%clk 0:01:31.7]} 23...
Bxd5 {[%clk 0:01:42.5]} 24. Qxd5 {[%clk 0:01:17.1]} 24... Rf8 {[%clk 0:01:36]}
25. Rxf8+ {[%clk 0:01:11.5]} 25... Qxf8 {[%clk 0:01:36.9]} 26. Kg1 {[%clk
0:01:12.3]} 26... b6 {[%clk 0:01:34.8]} 27. Qe6 {[%clk 0:01:10.4]} 27... Qf4
{[%clk 0:01:07.2]} 28. h3 {[%clk 0:01:06]} 28... Qc1+ {[%clk 0:01:05.1]} 29. Kh2
{[%clk 0:01:06.2]} 29... Qf4+ {[%clk 0:01:04.4]} 30. Kg1 {[%clk 0:01:06.4]}
30... Qc1+ {[%clk 0:01:03.8]} 31. Kh2 {[%clk 0:01:06.7]} 31... Qxc2 {[%clk
0:01:04]} 32. Qc8+ {[%clk 0:01:01.9]} 32... Kh7 {[%clk 0:01:04.2]} 33. Qf5+
{[%clk 0:01:02.1]} 33... Kg8 {[%clk 0:01:03.6]} 34. Qe6+ {[%clk 0:00:57.8]}
34... Kf8 {[%clk 0:00:59.6]} 35. Qf5+ {[%clk 0:00:58.1]} 35... Ke7 {[%clk
0:00:58.1]} 36. e5 {[%clk 0:00:57.7]} 36... Qxf5 {[%clk 0:00:57.6]} 0-1

[Event "*** Titled Tuesday Blitz"]
[Site "Chess.com"]
[Date "2020.10.20"]
[Round "7"]
[White "Omk124"]
[Black "zmeeed67"]
[Result "1-0"]
[WhiteElo "2493"]
[BlackElo "2352"]
[TimeControl "180+1"]
[EndTime "11:18:30 PDT"]
[Termination "Omk124 won by resignation"]

1. e4 {[%clk 0:03:00.9]} 1... Nc6 {[%clk 0:02:59.7]} 2. Nf3 {[%clk 0:02:59.1]}
2... d6 {[%clk 0:02:59.6]} 3. d4 {[%clk 0:02:59.2]} 3... Nf6 {[%clk 0:02:59.5]}
4. Nc3 {[%clk 0:02:59.3]} 4... Bg4 {[%clk 0:02:59.4]} 5. Be3 {[%clk 0:02:58.5]}
5... a6 {[%clk 0:02:58.8]} 6. h3 {[%clk 0:02:59]} 6... Bh5 {[%clk 0:02:57.6]} 7.
a4 {[%clk 0:02:58.2]} 7... e5 {[%clk 0:02:56.7]} 8. dxe5 {[%clk 0:02:50.7]} 8...
dxe5 {[%clk 0:02:55.9]} 9. Be2 {[%clk 0:02:47.5]} 9... Bb4 {[%clk 0:02:54.7]}
10. Bd2 {[%clk 0:02:40.9]} 10... O-O {[%clk 0:02:49]} 11. O-O {[%clk 0:02:38.1]}
11... Bxc3 {[%clk 0:02:19.3]} 12. Bxc3 {[%clk 0:02:38.2]} 12... Nxe4 {[%clk
0:02:11.8]} 13. Bxe5 {[%clk 0:02:38.2]} 13... Qxd1 {[%clk 0:01:47.8]} 14. Bxd1
{[%clk 0:02:37.7]} 14... Nxe5 {[%clk 0:01:34.6]} 15. Nxe5 {[%clk 0:02:37.1]}
15... Bxd1 {[%clk 0:01:20.7]} 16. Raxd1 {[%clk 0:02:38]} 16... Rad8 {[%clk
0:01:20.8]} 17. Rfe1 {[%clk 0:02:36.9]} 17... Nd6 {[%clk 0:01:11.7]} 18. b3
{[%clk 0:02:35.8]} 18... Rfe8 {[%clk 0:01:09.6]} 19. Kf1 {[%clk 0:02:33.2]}
19... Kf8 {[%clk 0:01:09.5]} 20. f3 {[%clk 0:02:29.7]} 20... f6 {[%clk
0:01:09.1]} 21. Nd3 {[%clk 0:02:29.5]} 21... Rxe1+ {[%clk 0:01:06.3]} 22. Kxe1
{[%clk 0:02:29.9]} 22... b6 {[%clk 0:01:00.5]} 23. a5 {[%clk 0:02:28.9]} 23...
Nf5 {[%clk 0:00:52.2]} 24. axb6 {[%clk 0:02:28.3]} 24... cxb6 {[%clk 0:00:52.2]}
25. Ra1 {[%clk 0:02:28.6]} 25... a5 {[%clk 0:00:52.1]} 26. Ra4 {[%clk
0:02:27.2]} 26... Ne3 {[%clk 0:00:50.7]} 27. Kd2 {[%clk 0:02:25]} 27... Nd5
{[%clk 0:00:21.9]} 28. Rc4 {[%clk 0:02:19.7]} 28... Nb4 {[%clk 0:00:21]} 29. Rc7
{[%clk 0:02:17]} 29... Re8 {[%clk 0:00:16.6]} 30. Nxb4 {[%clk 0:02:15.8]} 30...
axb4 {[%clk 0:00:16.7]} 31. Rc4 {[%clk 0:02:15.8]} 31... Re6 {[%clk 0:00:16.3]}
32. Rxb4 {[%clk 0:02:15.9]} 32... Ke7 {[%clk 0:00:16.9]} 33. Re4 {[%clk
0:02:15.9]} 33... Rxe4 {[%clk 0:00:15.5]} 34. fxe4 {[%clk 0:02:16.8]} 34... Kd6
{[%clk 0:00:16.1]} 35. Kd3 {[%clk 0:02:16.7]} 35... Ke5 {[%clk 0:00:16.6]} 36.
Ke3 {[%clk 0:02:17.3]} 36... g6 {[%clk 0:00:17]} 37. c4 {[%clk 0:02:15.8]} 37...
Kd6 {[%clk 0:00:17]} 38. Kd4 {[%clk 0:02:13.3]} 38... Kc6 {[%clk 0:00:16.8]} 39.
b4 {[%clk 0:02:13.9]} 39... Kd6 {[%clk 0:00:16.8]} 40. b5 {[%clk 0:02:13.8]}
40... h5 {[%clk 0:00:15]} 41. h4 {[%clk 0:02:10.5]} 41... g5 {[%clk 0:00:14.6]}
42. hxg5 {[%clk 0:02:11]} 42... fxg5 {[%clk 0:00:14.9]} 43. e5+ {[%clk
0:02:11.7]} 43... Ke6 {[%clk 0:00:15]} 44. Ke4 {[%clk 0:02:12.4]} 44... g4
{[%clk 0:00:14]} 45. c5 {[%clk 0:02:10.8]} 45... bxc5 {[%clk 0:00:14]} 46. b6
{[%clk 0:02:11]} 46... Kd7 {[%clk 0:00:14.1]} 47. e6+ {[%clk 0:02:10.9]} 1-0

[Event "*** Titled Tuesday Blitz"]
[Site "Chess.com"]
[Date "2020.10.20"]
[Round "7"]
[White "suyu28"]
[Black "Radzio1987"]
[Result "1-0"]
[WhiteElo "2623"]
[BlackElo "2789"]
[TimeControl "180+1"]
[EndTime "11:18:33 PDT"]
[Termination "suyu28 won by resignation"]

1. e4 {[%clk 0:03:00.9]} 1... c6 {[%clk 0:03:00.3]} 2. d4 {[%clk 0:02:59.6]}
2... d5 {[%clk 0:03:01.2]} 3. exd5 {[%clk 0:02:59.8]} 3... cxd5 {[%clk
0:03:00.5]} 4. Bd3 {[%clk 0:03:00.5]} 4... Nc6 {[%clk 0:03:00.6]} 5. c3 {[%clk
0:02:59.9]} 5... e6 {[%clk 0:03:01.1]} 6. Ne2 {[%clk 0:02:59.6]} 6... Bd6 {[%clk
0:03:01.7]} 7. Bf4 {[%clk 0:02:56.8]} 7... Nge7 {[%clk 0:03:01.6]} 8. O-O {[%clk
0:02:56.1]} 8... O-O {[%clk 0:03:01.4]} 9. Nd2 {[%clk 0:02:54.8]} 9... f6 {[%clk
0:03:01.5]} 10. Bxd6 {[%clk 0:02:51.5]} 10... Qxd6 {[%clk 0:03:02.4]} 11. f4
{[%clk 0:02:34.3]} 11... Bd7 {[%clk 0:03:01.9]} 12. Nf3 {[%clk 0:02:33.4]} 12...
Be8 {[%clk 0:03:01.5]} 13. Qd2 {[%clk 0:02:26.5]} 13... Bh5 {[%clk 0:02:50.7]}
14. Rae1 {[%clk 0:02:18.7]} 14... Rae8 {[%clk 0:02:40]} 15. Kh1 {[%clk
0:02:15.8]} 15... a6 {[%clk 0:02:38.5]} 16. Ng3 {[%clk 0:02:11.8]} 16... Bg6
{[%clk 0:02:37.6]} 17. Bxg6 {[%clk 0:01:37.3]} 17... Nxg6 {[%clk 0:02:38.5]} 18.
f5 {[%clk 0:01:36]} 18... exf5 {[%clk 0:02:35]} 19. Nxf5 {[%clk 0:01:35.5]}
19... Qd7 {[%clk 0:02:35.3]} 20. g4 {[%clk 0:01:30.4]} 20... Rxe1 {[%clk
0:02:21.3]} 21. Rxe1 {[%clk 0:01:28.8]} 21... Nge7 {[%clk 0:02:21.2]} 22. N3h4
{[%clk 0:01:21.1]} 22... g6 {[%clk 0:02:16.3]} 23. Nh6+ {[%clk 0:00:50.5]} 23...
Kg7 {[%clk 0:02:14.3]} 24. Rg1 {[%clk 0:00:50.5]} 24... Nd8 {[%clk 0:01:54]} 25.
N4f5+ {[%clk 0:00:29.6]} 25... Nxf5 {[%clk 0:01:32.3]} 26. gxf5 {[%clk
0:00:29.2]} 26... g5 {[%clk 0:01:32.6]} 27. h4 {[%clk 0:00:17.7]} 27... Kxh6
{[%clk 0:01:23.6]} 28. Rxg5 {[%clk 0:00:14.8]} 28... Nf7 {[%clk 0:01:11.8]} 29.
Rg6+ {[%clk 0:00:13.9]} 29... Kh5 {[%clk 0:01:12]} 30. Qd1+ {[%clk 0:00:14.1]}
1-0

[Event "*** Titled Tuesday Blitz"]
[Site "Chess.com"]
[Date "2020.10.20"]
[Round "7"]
[White "rasmussvane"]
[Black "731291"]
[Result "1-0"]
[WhiteElo "2892"]
[BlackElo "2628"]
[TimeControl "180+1"]
[EndTime "11:18:36 PDT"]
[Termination "rasmussvane won by resignation"]

1. Nf3 {[%clk 0:03:00.9]} 1... c5 {[%clk 0:02:59.5]} 2. c4 {[%clk 0:03:00.9]}
2... Nc6 {[%clk 0:02:58.1]} 3. Nc3 {[%clk 0:03:01.2]} 3... e5 {[%clk 0:02:58.1]}
4. e3 {[%clk 0:03:01.5]} 4... f6 {[%clk 0:02:58.1]} 5. d4 {[%clk 0:02:59]} 5...
cxd4 {[%clk 0:02:49.6]} 6. exd4 {[%clk 0:02:59.9]} 6... Bb4 {[%clk 0:02:50.1]}
7. Be2 {[%clk 0:02:30.6]} 7... d6 {[%clk 0:02:15.5]} 8. O-O {[%clk 0:02:28.5]}
8... Bxc3 {[%clk 0:02:08.9]} 9. bxc3 {[%clk 0:02:28.6]} 9... Nge7 {[%clk
0:02:09.8]} 10. Ba3 {[%clk 0:02:17.3]} 10... O-O {[%clk 0:02:07.4]} 11. d5
{[%clk 0:02:17.4]} 11... Na5 {[%clk 0:01:57.9]} 12. c5 {[%clk 0:02:17.7]} 12...
Bg4 {[%clk 0:01:37.1]} 13. cxd6 {[%clk 0:02:09.5]} 13... Nf5 {[%clk 0:01:37]}
14. Qa4 {[%clk 0:01:59.8]} 14... Bxf3 {[%clk 0:01:11.2]} 15. Bxf3 {[%clk
0:02:00.7]} 15... b6 {[%clk 0:01:06.5]} 16. d7 {[%clk 0:01:47.8]} 16... Rf7
{[%clk 0:01:05.1]} 17. d6 {[%clk 0:01:48.1]} 17... Rb8 {[%clk 0:00:59.9]} 18.
Bd5 {[%clk 0:01:47.3]} 18... Kf8 {[%clk 0:00:47.9]} 19. Bxf7 {[%clk 0:01:40.8]}
19... Kxf7 {[%clk 0:00:48.8]} 20. Qe4 {[%clk 0:01:21.2]} 20... g6 {[%clk
0:00:45.8]} 21. g4 {[%clk 0:01:17.6]} 21... Ng7 {[%clk 0:00:45]} 22. f4 {[%clk
0:01:17.2]} 22... exf4 {[%clk 0:00:32.6]} 23. Qe7+ {[%clk 0:01:16.9]} 23... Kg8
{[%clk 0:00:31]} 24. Rxf4 {[%clk 0:01:16.1]} 24... f5 {[%clk 0:00:26.8]} 25.
gxf5 {[%clk 0:01:04]} 25... Nxf5 {[%clk 0:00:27.7]} 26. Rxf5 {[%clk 0:01:01.1]}
26... gxf5 {[%clk 0:00:28.6]} 27. Kf2 {[%clk 0:00:57.2]} 27... Qf8 {[%clk
0:00:24]} 28. Rg1+ {[%clk 0:00:55.7]} 28... Kh8 {[%clk 0:00:24.3]} 29. Qe5+
{[%clk 0:00:56]} 1-0

[Event "*** Titled Tuesday Blitz"]
[Site "Chess.com"]
[Date "2020.10.20"]
[Round "7"]
[White "capatl"]
[Black "Quiet_Desperation"]
[Result "1-0"]
[WhiteElo "2518"]
[BlackElo "1840"]
[TimeControl "180+1"]
[EndTime "11:18:37 PDT"]
[Termination "capatl won by resignation"]

1. c4 {[%clk 0:03:00.9]} 1... Nf6 {[%clk 0:02:55.3]} 2. Nc3 {[%clk 0:02:40.3]}
2... e6 {[%clk 0:02:56.2]} 3. g3 {[%clk 0:02:40.2]} 3... d5 {[%clk 0:02:57.1]}
4. cxd5 {[%clk 0:02:40.2]} 4... exd5 {[%clk 0:02:54.9]} 5. d4 {[%clk 0:02:41.1]}
5... Bb4 {[%clk 0:02:52]} 6. Bg2 {[%clk 0:02:32.2]} 6... c6 {[%clk 0:02:50.3]}
7. Nf3 {[%clk 0:02:17.7]} 7... O-O {[%clk 0:02:46.1]} 8. O-O {[%clk 0:02:05.6]}
8... Nbd7 {[%clk 0:02:44.7]} 9. a3 {[%clk 0:01:54.9]} 9... Bd6 {[%clk
0:02:39.3]} 10. Bg5 {[%clk 0:01:51.5]} 10... h6 {[%clk 0:02:38]} 11. Bxf6 {[%clk
0:01:43.3]} 11... Nxf6 {[%clk 0:02:38.4]} 12. b4 {[%clk 0:01:42.1]} 12... Re8
{[%clk 0:02:34.5]} 13. e3 {[%clk 0:01:33.3]} 13... Bf5 {[%clk 0:02:32.3]} 14. b5
{[%clk 0:01:31.3]} 14... Qa5 {[%clk 0:02:24]} 15. Qb3 {[%clk 0:01:20.8]} 15...
Bd3 {[%clk 0:02:20.7]} 16. Nxd5 {[%clk 0:00:55.8]} 16... Bxf1 {[%clk 0:02:07.5]}
17. Nxf6+ {[%clk 0:00:55.6]} 17... gxf6 {[%clk 0:02:07.7]} 18. Bxf1 {[%clk
0:00:56.5]} 18... cxb5 {[%clk 0:01:57.7]} 19. Bxb5 {[%clk 0:00:48.8]} 19... Re7
{[%clk 0:01:57.6]} 20. a4 {[%clk 0:00:44.4]} 20... Rc8 {[%clk 0:01:56.9]} 21.
Bc4 {[%clk 0:00:41.9]} 21... Rec7 {[%clk 0:01:52.1]} 22. Bd5 {[%clk 0:00:28.3]}
22... Qa6 {[%clk 0:01:23.7]} 23. Kg2 {[%clk 0:00:27]} 23... Rc1 {[%clk
0:01:23.2]} 24. Rxc1 {[%clk 0:00:24.2]} 24... Rxc1 {[%clk 0:01:23.2]} 25. Bxf7+
{[%clk 0:00:20.3]} 25... Kg7 {[%clk 0:01:19.4]} 26. Nh4 {[%clk 0:00:20.4]} 26...
Qf1+ {[%clk 0:01:18.9]} 27. Kf3 {[%clk 0:00:20.7]} 27... Qd1+ {[%clk 0:01:17.6]}
28. Qxd1 {[%clk 0:00:20.5]} 28... Rxd1 {[%clk 0:01:18.5]} 29. Bd5 {[%clk
0:00:20.7]} 29... Rb1 {[%clk 0:01:17.4]} 30. Nf5+ {[%clk 0:00:20.8]} 30... Kf8
{[%clk 0:01:17.6]} 31. Nxd6 {[%clk 0:00:21.7]} 31... Rb4 {[%clk 0:01:17.1]} 32.
Nxb7 {[%clk 0:00:19.8]} 32... Rxa4 {[%clk 0:01:17.3]} 33. Nc5 {[%clk 0:00:20.7]}
33... Rb4 {[%clk 0:01:16.2]} 34. Ne6+ {[%clk 0:00:17.8]} 34... Ke7 {[%clk
0:01:14.3]} 35. Nf4 {[%clk 0:00:17.5]} 35... a5 {[%clk 0:01:13.8]} 36. Be4
{[%clk 0:00:18]} 36... a4 {[%clk 0:01:12.9]} 37. Nd5+ {[%clk 0:00:18.3]} 1-0